[Event "*** Titled Tuesday Blitz"]
[Site "Chess.com"]
[Date "2019.07.02"]
[Round "5"]
[White "PaulfromSPb"]
[Black "KaterynaLagno"]
[Result "1-0"]
[WhiteElo "2634"]
[BlackElo "2654"]
[TimeControl "180+2"]
[EndTime "14:07:19 PDT"]
[Termination "PaulfromSPb won by resignation"]

1. d4 {[%clk 0:03:00.1]} 1... Nf6 {[%clk 0:02:59.4]} 2. Bf4 {[%clk 0:03:00.9]}
2... d5 {[%clk 0:02:55.2]} 3. e3 {[%clk 0:03:01.5]} 3... g6 {[%clk 0:02:52.8]}
4. c3 {[%clk 0:03:02.5]} 4... Bg7 {[%clk 0:02:52.8]} 5. h3 {[%clk 0:03:03.4]}
5... O-O {[%clk 0:02:52.6]} 6. Nd2 {[%clk 0:03:04.5]} 6... b6 {[%clk 0:02:42]}
7. Ngf3 {[%clk 0:03:03]} 7... c5 {[%clk 0:02:42.8]} 8. Bd3 {[%clk 0:03:02.9]}
8... Ba6 {[%clk 0:02:40.6]} 9. Bxa6 {[%clk 0:03:03.2]} 9... Nxa6 {[%clk
0:02:42.5]} 10. Ne5 {[%clk 0:03:03.5]} 10... Nc7 {[%clk 0:02:41.2]} 11. O-O
{[%clk 0:03:00.4]} 11... Ne6 {[%clk 0:02:32.3]} 12. Bh2 {[%clk 0:03:00.6]} 12...
Qe8 {[%clk 0:02:25.2]} 13. a4 {[%clk 0:03:00.8]} 13... Nd7 {[%clk 0:02:18.6]}
14. Nef3 {[%clk 0:02:59.8]} 14... Qc8 {[%clk 0:01:56.6]} 15. Qb3 {[%clk
0:02:59.9]} 15... Qc6 {[%clk 0:01:56.7]} 16. Qb5 {[%clk 0:02:57.9]} 16... Qb7
{[%clk 0:01:55.4]} 17. Qe2 {[%clk 0:02:52.9]} 17... a6 {[%clk 0:01:53.9]} 18. b4
{[%clk 0:02:49.9]} 18... cxb4 {[%clk 0:01:53.5]} 19. cxb4 {[%clk 0:02:50.6]}
19... Rfc8 {[%clk 0:01:55.3]} 20. b5 {[%clk 0:02:44.9]} 20... a5 {[%clk
0:01:53]} 21. Qd3 {[%clk 0:02:41]} 21... h5 {[%clk 0:01:31.6]} 22. Qb3 {[%clk
0:02:37.7]} 22... g5 {[%clk 0:01:24.4]} 23. Ne1 {[%clk 0:02:32.2]} 23... Nf6
{[%clk 0:00:40.5]} 24. Nd3 {[%clk 0:02:32.5]} 24... g4 {[%clk 0:00:42]} 25. hxg4
{[%clk 0:02:28.4]} 25... Nxg4 {[%clk 0:00:42.6]} 26. Bg3 {[%clk 0:02:29.4]}
26... Bf6 {[%clk 0:00:43.2]} 27. Nf3 {[%clk 0:02:29.4]} 27... Rc4 {[%clk
0:00:42.3]} 28. Nb2 {[%clk 0:02:26]} 28... Rb4 {[%clk 0:00:42.7]} 29. Qa2 {[%clk
0:02:22.7]} 29... Rc8 {[%clk 0:00:43.8]} 30. Rac1 {[%clk 0:02:23.5]} 30... Nc5
{[%clk 0:00:30.7]} 31. Nd2 {[%clk 0:02:04.7]} 31... h4 {[%clk 0:00:27.7]} 32.
Bf4 {[%clk 0:02:05.5]} 32... Qd7 {[%clk 0:00:25.3]} 33. Rc2 {[%clk 0:01:57.9]}
33... Ne6 {[%clk 0:00:18.5]} 34. Nd3 {[%clk 0:01:55.5]} 34... Nxf4 {[%clk
0:00:16.9]} 35. Nxf4 {[%clk 0:01:52.7]} 35... Rxc2 {[%clk 0:00:11.4]} 36. Qxc2
{[%clk 0:01:53.4]} 36... e5 {[%clk 0:00:13]} 37. Nd3 {[%clk 0:01:45.6]} 37...
exd4 {[%clk 0:00:12.7]} 38. Nxb4 {[%clk 0:01:41.6]} 38... Qd6 {[%clk 0:00:13.5]}
39. Nf3 {[%clk 0:01:41.5]} 39... dxe3 {[%clk 0:00:11.9]} 40. Nd3 {[%clk
0:01:37.9]} 40... exf2+ {[%clk 0:00:11.9]} 41. Nxf2 {[%clk 0:01:38.5]} 41... Ne3
{[%clk 0:00:12.7]} 42. Qc8+ {[%clk 0:01:37.2]} 42... Kg7 {[%clk 0:00:14]} 43.
Re1 {[%clk 0:01:34.9]} 43... d4 {[%clk 0:00:15.5]} 44. Ne4 {[%clk 0:01:27.7]}
44... Qf4 {[%clk 0:00:09.4]} 45. Nxf6 {[%clk 0:01:27.5]} 45... Qxf6 {[%clk
0:00:10.2]} 46. Qd7 {[%clk 0:01:19.9]} 46... Nf5 {[%clk 0:00:09.7]} 47. Re5
{[%clk 0:01:15.5]} 47... Nd6 {[%clk 0:00:07.4]} 48. Qg4+ {[%clk 0:01:10]} 1-0

[Event "*** Titled Tuesday Blitz"]
[Site "Chess.com"]
[Date "2019.07.02"]
[Round "5"]
[White "TonRicher"]
[Black "Zarikovs1999"]
[Result "1/2-1/2"]
[WhiteElo "2411"]
[BlackElo "2531"]
[TimeControl "180+2"]
[EndTime "14:07:19 PDT"]
[Termination "Game drawn by repetition"]

1. d4 {[%clk 0:03:01.9]} 1... Nf6 {[%clk 0:02:52.6]} 2. c4 {[%clk 0:03:02.3]}
2... c5 {[%clk 0:02:53.1]} 3. d5 {[%clk 0:03:03.3]} 3... b5 {[%clk 0:02:53.9]}
4. Qc2 {[%clk 0:03:04.2]} 4... bxc4 {[%clk 0:02:53]} 5. e4 {[%clk 0:03:05.3]}
5... d6 {[%clk 0:02:53.7]} 6. Bxc4 {[%clk 0:03:05.9]} 6... g6 {[%clk 0:02:55.6]}
7. Nf3 {[%clk 0:03:06.6]} 7... Bg7 {[%clk 0:02:57.5]} 8. O-O {[%clk 0:03:07.4]}
8... O-O {[%clk 0:02:59.4]} 9. Re1 {[%clk 0:03:05.3]} 9... Nbd7 {[%clk
0:02:58.6]} 10. Bd2 {[%clk 0:03:00.8]} 10... Nb6 {[%clk 0:02:59]} 11. Be2 {[%clk
0:02:46.3]} 11... Bb7 {[%clk 0:02:47.5]} 12. a4 {[%clk 0:02:32.2]} 12... e6
{[%clk 0:02:32.6]} 13. a5 {[%clk 0:02:27.4]} 13... Nbd7 {[%clk 0:02:27.8]} 14.
a6 {[%clk 0:02:26.9]} 14... Bc8 {[%clk 0:02:28.7]} 15. dxe6 {[%clk 0:02:23.4]}
15... fxe6 {[%clk 0:02:25.3]} 16. e5 {[%clk 0:01:58.8]} 16... dxe5 {[%clk
0:02:19.5]} 17. Nc3 {[%clk 0:01:56]} 17... Nd5 {[%clk 0:02:04.1]} 18. Bg5 {[%clk
0:01:38.6]} 18... Qb6 {[%clk 0:01:46]} 19. Bc4 {[%clk 0:01:32.9]} 19... Nb4
{[%clk 0:01:36]} 20. Qb3 {[%clk 0:01:20.2]} 20... Re8 {[%clk 0:01:32.4]} 21. Be3
{[%clk 0:01:07.3]} 21... Rb8 {[%clk 0:01:23.6]} 22. Ng5 {[%clk 0:01:06.5]} 22...
Nf8 {[%clk 0:01:22.5]} 23. Red1 {[%clk 0:01:01.6]} 23... Bxa6 {[%clk 0:01:16.8]}
24. Bxa6 {[%clk 0:00:55.4]} 24... Nxa6 {[%clk 0:01:14.9]} 25. Qc4 {[%clk
0:00:53]} 25... Nb4 {[%clk 0:01:06.3]} 26. Bxc5 {[%clk 0:00:53.8]} 26... Qc6
{[%clk 0:01:03.8]} 27. Rxa7 {[%clk 0:00:40.6]} 27... h6 {[%clk 0:00:47]} 28.
Nge4 {[%clk 0:00:32.3]} 28... Nc2 {[%clk 0:00:42]} 29. Rd6 {[%clk 0:00:29.5]}
29... Qc8 {[%clk 0:00:39.7]} 30. Qd3 {[%clk 0:00:23.6]} 30... Nd4 {[%clk
0:00:38.1]} 31. Bxd4 {[%clk 0:00:17.8]} 31... exd4 {[%clk 0:00:38.5]} 32. Rxg7+
{[%clk 0:00:18.3]} 32... Kxg7 {[%clk 0:00:39.7]} 33. Qxd4+ {[%clk 0:00:19.4]}
33... e5 {[%clk 0:00:40.2]} 34. Qd5 {[%clk 0:00:18.6]} 34... Rxb2 {[%clk
0:00:28.9]} 35. h4 {[%clk 0:00:17.2]} 35... Qa8 {[%clk 0:00:18.6]} 36. Qc5
{[%clk 0:00:12]} 36... Qc8 {[%clk 0:00:16.3]} 37. Qd5 {[%clk 0:00:12.2]} 37...
Qa8 {[%clk 0:00:17.2]} 38. Qc5 {[%clk 0:00:13.5]} 38... Qc8 {[%clk 0:00:17.6]}
39. Qd5 {[%clk 0:00:11.3]} 1/2-1/2

[Event "*** Titled Tuesday Blitz"]
[Site "Chess.com"]
[Date "2019.07.02"]
[Round "5"]
[White "ram1zan"]
[Black "Berardino"]
[Result "1-0"]
[WhiteElo "2786"]
[BlackElo "2528"]
[TimeControl "180+2"]
[EndTime "14:07:20 PDT"]
[Termination "ram1zan won on time"]

1. e4 {[%clk 0:03:01.9]} 1... c5 {[%clk 0:03:00.7]} 2. Nc3 {[%clk 0:03:00.6]}
2... b6 {[%clk 0:03:00.2]} 3. Bc4 {[%clk 0:02:57]} 3... Bb7 {[%clk 0:03:00.7]}
4. d3 {[%clk 0:02:58.2]} 4... e6 {[%clk 0:03:01.6]} 5. a3 {[%clk 0:02:59.2]}
5... Nf6 {[%clk 0:02:59]} 6. Ba2 {[%clk 0:02:59.1]} 6... d5 {[%clk 0:02:59.5]}
7. e5 {[%clk 0:02:58.6]} 7... Nfd7 {[%clk 0:03:00.5]} 8. f4 {[%clk 0:03:00]}
8... Nc6 {[%clk 0:02:45.7]} 9. Nf3 {[%clk 0:03:01]} 9... a6 {[%clk 0:02:43.3]}
10. O-O {[%clk 0:03:02.2]} 10... Ne7 {[%clk 0:02:41.6]} 11. Qe1 {[%clk
0:02:49.6]} 11... h5 {[%clk 0:02:40]} 12. Nh4 {[%clk 0:02:48.7]} 12... g6 {[%clk
0:02:30.4]} 13. Bd2 {[%clk 0:02:44.2]} 13... Nf5 {[%clk 0:02:28.3]} 14. Nf3
{[%clk 0:02:22.8]} 14... Be7 {[%clk 0:02:23.2]} 15. Nd1 {[%clk 0:02:23.7]} 15...
d4 {[%clk 0:01:44.7]} 16. Qe2 {[%clk 0:02:23.6]} 16... Nh4 {[%clk 0:01:26.7]}
17. Nxh4 {[%clk 0:02:20.5]} 17... Bxh4 {[%clk 0:01:27.5]} 18. Nf2 {[%clk
0:02:22.1]} 18... Bxf2+ {[%clk 0:01:27.8]} 19. Rxf2 {[%clk 0:02:24]} 19... Qc7
{[%clk 0:01:10.4]} 20. Rff1 {[%clk 0:01:51.2]} 20... h4 {[%clk 0:01:10.2]} 21.
h3 {[%clk 0:01:45.3]} 21... Nb8 {[%clk 0:01:09.6]} 22. Be1 {[%clk 0:01:31]}
22... Nc6 {[%clk 0:01:07.8]} 23. Qg4 {[%clk 0:01:31]} 23... Ne7 {[%clk
0:00:56.2]} 24. Bxh4 {[%clk 0:01:30.8]} 24... Nf5 {[%clk 0:00:57.1]} 25. Bf6
{[%clk 0:01:22]} 25... Ne3 {[%clk 0:00:32.7]} 26. Qg3 {[%clk 0:01:21.3]} 26...
Rh5 {[%clk 0:00:25.6]} 27. Rf2 {[%clk 0:01:11.8]} 27... Qc6 {[%clk 0:00:21]} 28.
Re1 {[%clk 0:01:07.7]} 28... Nf5 {[%clk 0:00:19.1]} 29. Qg4 {[%clk 0:01:05.8]}
29... Kd7 {[%clk 0:00:19.1]} 30. c3 {[%clk 0:00:54]} 30... Rg8 {[%clk
0:00:18.4]} 31. cxd4 {[%clk 0:00:54.1]} 31... Nxd4 {[%clk 0:00:19.3]} 32. b4
{[%clk 0:00:45.7]} 32... Kc8 {[%clk 0:00:14.8]} 33. Be7 {[%clk 0:00:39.8]} 33...
Kb8 {[%clk 0:00:15.4]} 34. bxc5 {[%clk 0:00:40.8]} 34... bxc5 {[%clk 0:00:16.4]}
35. Rc1 {[%clk 0:00:41.3]} 35... Qb5 {[%clk 0:00:09.4]} 36. Rb1 {[%clk
0:00:38.3]} 36... Qxd3 {[%clk 0:00:09.5]} 37. Rfb2 {[%clk 0:00:39.2]} 37... Nb5
{[%clk 0:00:08.2]} 38. a4 {[%clk 0:00:40.5]} 38... Qe3+ {[%clk 0:00:04.1]} 39.
Kh2 {[%clk 0:00:41.7]} 39... g5 {[%clk 0:00:04.3]} 40. axb5 {[%clk 0:00:41]} 1-0

[Event "*** Titled Tuesday Blitz"]
[Site "Chess.com"]
[Date "2019.07.02"]
[Round "5"]
[White "SoltaniciR"]
[Black "Last7Samurai"]
[Result "1-0"]
[WhiteElo "2576"]
[BlackElo "2765"]
[TimeControl "180+2"]
[EndTime "14:07:21 PDT"]
[Termination "SoltaniciR won by resignation"]

1. e4 {[%clk 0:03:01.9]} 1... e5 {[%clk 0:02:54.6]} 2. Nf3 {[%clk 0:03:02.5]}
2... Nc6 {[%clk 0:02:55.1]} 3. Bb5 {[%clk 0:03:03.8]} 3... a6 {[%clk 0:02:56]}
4. Ba4 {[%clk 0:03:02.1]} 4... g6 {[%clk 0:02:56]} 5. c3 {[%clk 0:03:00.9]} 5...
d6 {[%clk 0:02:56]} 6. d4 {[%clk 0:03:00.8]} 6... Bd7 {[%clk 0:02:55.8]} 7. O-O
{[%clk 0:03:00.2]} 7... Bg7 {[%clk 0:02:56]} 8. Be3 {[%clk 0:02:47.8]} 8... Nf6
{[%clk 0:02:53.9]} 9. Nbd2 {[%clk 0:02:46.1]} 9... O-O {[%clk 0:02:50.8]} 10. h3
{[%clk 0:02:01.9]} 10... Re8 {[%clk 0:02:47.7]} 11. Bc2 {[%clk 0:02:01.3]} 11...
Nh5 {[%clk 0:02:23.4]} 12. Re1 {[%clk 0:01:58.3]} 12... h6 {[%clk 0:02:19.6]}
13. Bd3 {[%clk 0:01:53.1]} 13... Qf6 {[%clk 0:02:11.3]} 14. Bf1 {[%clk
0:01:49.1]} 14... Nf4 {[%clk 0:02:07.7]} 15. Kh2 {[%clk 0:01:50]} 15... g5
{[%clk 0:02:00.2]} 16. d5 {[%clk 0:01:28.6]} 16... Ne7 {[%clk 0:01:59.1]} 17.
Ng1 {[%clk 0:01:29.2]} 17... h5 {[%clk 0:01:51.9]} 18. g3 {[%clk 0:01:29.5]}
18... Neg6 {[%clk 0:00:52.1]} 19. c4 {[%clk 0:01:20.9]} 19... g4 {[%clk
0:00:47.2]} 20. c5 {[%clk 0:00:55.1]} 20... Nxh3 {[%clk 0:00:28]} 21. Nxh3
{[%clk 0:00:47.4]} 21... gxh3 {[%clk 0:00:29.9]} 22. cxd6 {[%clk 0:00:46.4]}
22... cxd6 {[%clk 0:00:30.5]} 23. Qxh5 {[%clk 0:00:47.1]} 23... Nf4 {[%clk
0:00:22.8]} 24. gxf4 {[%clk 0:00:40.2]} 24... exf4 {[%clk 0:00:24.7]} 25. Bb6
{[%clk 0:00:40.7]} 25... Qxb2 {[%clk 0:00:25.6]} 26. Nc4 {[%clk 0:00:40.6]}
26... Qf6 {[%clk 0:00:17.6]} 27. Bxh3 {[%clk 0:00:39.8]} 27... Bb5 {[%clk
0:00:18.4]} 28. Nd2 {[%clk 0:00:26.8]} 28... Re5 {[%clk 0:00:18.5]} 29. Bf5
{[%clk 0:00:22]} 29... Rae8 {[%clk 0:00:13.7]} 30. Nf3 {[%clk 0:00:22.4]} 30...
Rxf5 {[%clk 0:00:11.1]} 31. Qxf5 {[%clk 0:00:22]} 31... Qh6+ {[%clk 0:00:11.8]}
32. Qh3 {[%clk 0:00:22.1]} 32... Qg6 {[%clk 0:00:11.9]} 33. Rg1 {[%clk
0:00:21.7]} 33... Qxe4 {[%clk 0:00:12.6]} 34. Bd4 {[%clk 0:00:20]} 34... f6
{[%clk 0:00:13.6]} 35. Bxf6 {[%clk 0:00:17.6]} 1-0

[Event "*** Titled Tuesday Blitz"]
[Site "Chess.com"]
[Date "2019.07.02"]
[Round "5"]
[White "mbojan"]
[Black "CookiesAndIceCream"]
[Result "1-0"]
[WhiteElo "2599"]
[BlackElo "2367"]
[TimeControl "180+2"]
[EndTime "14:07:24 PDT"]
[Termination "mbojan won by resignation"]

1. e4 {[%clk 0:03:01.9]} 1... e6 {[%clk 0:03:01.2]} 2. d4 {[%clk 0:03:03]} 2...
d5 {[%clk 0:03:02.5]} 3. Nc3 {[%clk 0:03:04.4]} 3... Nf6 {[%clk 0:03:03]} 4. e5
{[%clk 0:03:05]} 4... Nfd7 {[%clk 0:03:04.6]} 5. f4 {[%clk 0:03:06.9]} 5... c5
{[%clk 0:03:05.6]} 6. Nf3 {[%clk 0:03:08.6]} 6... Nc6 {[%clk 0:03:07.1]} 7. Be3
{[%clk 0:03:10]} 7... a6 {[%clk 0:03:08.6]} 8. Qd2 {[%clk 0:03:09.7]} 8... b5
{[%clk 0:03:10]} 9. dxc5 {[%clk 0:03:08]} 9... Bxc5 {[%clk 0:03:10.1]} 10. Nd4
{[%clk 0:03:04.3]} 10... Qb6 {[%clk 0:03:10.1]} 11. O-O-O {[%clk 0:03:03.6]}
11... O-O {[%clk 0:02:37.8]} 12. Kb1 {[%clk 0:02:58.6]} 12... Bb7 {[%clk
0:02:16.6]} 13. h4 {[%clk 0:02:43]} 13... Rfc8 {[%clk 0:01:36]} 14. g4 {[%clk
0:02:39.6]} 14... Nxd4 {[%clk 0:01:28.4]} 15. Bxd4 {[%clk 0:02:39.7]} 15... Bxd4
{[%clk 0:01:21.6]} 16. Qxd4 {[%clk 0:02:41.6]} 16... Nc5 {[%clk 0:01:18.8]} 17.
a3 {[%clk 0:02:38.1]} 17... Qc7 {[%clk 0:00:53.8]} 18. Rh2 {[%clk 0:02:32.1]}
18... Ne4 {[%clk 0:00:51]} 19. Rh3 {[%clk 0:02:17.2]} 19... Qa5 {[%clk
0:00:41.5]} 20. Nxe4 {[%clk 0:02:14.2]} 20... dxe4 {[%clk 0:00:42.2]} 21. Qb4
{[%clk 0:01:57.1]} 21... Qb6 {[%clk 0:00:37.6]} 22. Qd4 {[%clk 0:01:54]} 22...
Qa5 {[%clk 0:00:36.4]} 23. Qb4 {[%clk 0:01:45.6]} 23... Qb6 {[%clk 0:00:36.1]}
24. a4 {[%clk 0:01:07.6]} 24... Rd8 {[%clk 0:00:28.7]} 25. Rd6 {[%clk
0:00:31.6]} 25... Qg1 {[%clk 0:00:23.4]} 26. Qe1 {[%clk 0:00:23.6]} 26... Bd5
{[%clk 0:00:22.6]} 27. Rg3 {[%clk 0:00:19.3]} 27... Qc5 {[%clk 0:00:21.1]} 28.
Rc3 {[%clk 0:00:19.6]} 28... Qb4 {[%clk 0:00:20.2]} 29. Rxd8+ {[%clk 0:00:19]}
29... Rxd8 {[%clk 0:00:19.8]} 30. axb5 {[%clk 0:00:19.8]} 30... axb5 {[%clk
0:00:18.7]} 31. Be2 {[%clk 0:00:17.4]} 31... Qa5 {[%clk 0:00:19.4]} 32. b3
{[%clk 0:00:08.5]} 32... Ra8 {[%clk 0:00:20]} 33. Rc8+ {[%clk 0:00:08.7]} 33...
Qd8 {[%clk 0:00:15.7]} 34. Rxd8+ {[%clk 0:00:09.1]} 34... Rxd8 {[%clk
0:00:17.6]} 35. Bxb5 {[%clk 0:00:10.2]} 35... h6 {[%clk 0:00:17.2]} 36. c4
{[%clk 0:00:11.3]} 36... Bb7 {[%clk 0:00:18.4]} 37. g5 {[%clk 0:00:12.3]} 37...
Rd3 {[%clk 0:00:20.2]} 38. Kb2 {[%clk 0:00:12.3]} 38... hxg5 {[%clk 0:00:20.3]}
39. hxg5 {[%clk 0:00:13.3]} 39... e3 {[%clk 0:00:21.8]} 40. c5 {[%clk
0:00:14.6]} 40... Rd2+ {[%clk 0:00:22.7]} 41. Kc3 {[%clk 0:00:16]} 1-0

[Event "*** Titled Tuesday Blitz"]
[Site "Chess.com"]
[Date "2019.07.02"]
[Round "5"]
[White "GuerrieroFromLevant"]
[Black "pandamaster3000"]
[Result "1-0"]
[WhiteElo "2245"]
[BlackElo "2274"]
[TimeControl "180+2"]
[EndTime "14:07:25 PDT"]
[Termination "GuerrieroFromLevant won by resignation"]

1. e4 {[%clk 0:03:01.9]} 1... c5 {[%clk 0:03:00.8]} 2. Nf3 {[%clk 0:03:02.6]}
2... d6 {[%clk 0:03:01.1]} 3. Bb5+ {[%clk 0:03:02.4]} 3... Nd7 {[%clk
0:03:01.8]} 4. Ba4 {[%clk 0:03:03.4]} 4... a6 {[%clk 0:02:56.1]} 5. c4 {[%clk
0:03:04]} 5... Nf6 {[%clk 0:02:56.7]} 6. Nc3 {[%clk 0:03:01.7]} 6... g6 {[%clk
0:02:52.3]} 7. O-O {[%clk 0:03:00]} 7... Bg7 {[%clk 0:02:53.6]} 8. h3 {[%clk
0:02:59.2]} 8... O-O {[%clk 0:02:54.2]} 9. a3 {[%clk 0:02:59.9]} 9... Ne5 {[%clk
0:02:45.8]} 10. d3 {[%clk 0:02:58.2]} 10... Bd7 {[%clk 0:02:36.4]} 11. Nxe5
{[%clk 0:02:48.4]} 11... dxe5 {[%clk 0:02:34.6]} 12. Bxd7 {[%clk 0:02:46.9]}
12... Qxd7 {[%clk 0:02:36.5]} 13. f4 {[%clk 0:02:48.3]} 13... Qd4+ {[%clk
0:02:13.6]} 14. Kh2 {[%clk 0:02:40.1]} 14... exf4 {[%clk 0:01:57.1]} 15. Bxf4
{[%clk 0:02:39.1]} 15... Nh5 {[%clk 0:01:48.9]} 16. g3 {[%clk 0:02:30]} 16... e6
{[%clk 0:01:31.4]} 17. Qf3 {[%clk 0:02:25.1]} 17... Rfd8 {[%clk 0:01:20.2]} 18.
Rad1 {[%clk 0:02:26.1]} 18... b5 {[%clk 0:01:20.1]} 19. Be3 {[%clk 0:02:15.5]}
19... Qd6 {[%clk 0:00:54.7]} 20. cxb5 {[%clk 0:02:12.2]} 20... Be5 {[%clk
0:00:35.9]} 21. Ne2 {[%clk 0:01:55.7]} 21... axb5 {[%clk 0:00:32.5]} 22. Qxf7+
{[%clk 0:01:49.3]} 22... Kh8 {[%clk 0:00:33.4]} 23. Qf3 {[%clk 0:01:33.7]} 23...
Rf8 {[%clk 0:00:30.1]} 24. Bf4 {[%clk 0:01:28.6]} 24... Nxf4 {[%clk 0:00:19.6]}
25. gxf4 {[%clk 0:01:30.5]} 25... g5 {[%clk 0:00:20.6]} 26. fxe5 {[%clk
0:01:28.4]} 26... Qxe5+ {[%clk 0:00:15.6]} 27. Qg3 {[%clk 0:01:28.7]} 27... Qxb2
{[%clk 0:00:16.6]} 28. Qg2 {[%clk 0:01:24.9]} 28... Rxf1 {[%clk 0:00:15.7]} 29.
Rxf1 {[%clk 0:01:25.2]} 29... Qe5+ {[%clk 0:00:16.4]} 30. Ng3 {[%clk 0:01:25.4]}
30... Rxa3 {[%clk 0:00:17.3]} 31. Qf3 {[%clk 0:01:25.9]} 31... Ra2+ {[%clk
0:00:16.2]} 32. Kh1 {[%clk 0:01:25.9]} 32... Ra8 {[%clk 0:00:15]} 33. Nh5 {[%clk
0:01:24.9]} 33... Rg8 {[%clk 0:00:05.8]} 34. Qf6+ {[%clk 0:01:26.2]} 34... Qxf6
{[%clk 0:00:06.8]} 35. Rxf6 {[%clk 0:01:28]} 35... c4 {[%clk 0:00:06.7]} 36.
dxc4 {[%clk 0:01:28.8]} 36... bxc4 {[%clk 0:00:08.6]} 37. Rxe6 {[%clk
0:01:30.3]} 37... Rc8 {[%clk 0:00:10.2]} 38. Rd6 {[%clk 0:01:31.1]} 38... c3
{[%clk 0:00:11.2]} 39. Rd1 {[%clk 0:01:32.7]} 39... c2 {[%clk 0:00:12.5]} 40.
Rc1 {[%clk 0:01:34.3]} 40... Kg8 {[%clk 0:00:12.6]} 41. Ng3 {[%clk 0:01:34.6]}
41... Kf7 {[%clk 0:00:11.1]} 42. Ne2 {[%clk 0:01:36]} 42... Rc4 {[%clk
0:00:11.7]} 43. Kg2 {[%clk 0:01:36.3]} 43... Ke6 {[%clk 0:00:13]} 44. Kf3 {[%clk
0:01:36.1]} 44... Ke5 {[%clk 0:00:13.7]} 45. Ke3 {[%clk 0:01:23.6]} 45... h5
{[%clk 0:00:12.7]} 46. Kd3 {[%clk 0:01:21.4]} 46... Rxe4 {[%clk 0:00:12.1]} 47.
Rxc2 {[%clk 0:01:22.7]} 47... Rh4 {[%clk 0:00:08.8]} 48. Ng1 {[%clk 0:01:20.1]}
48... g4 {[%clk 0:00:08.9]} 49. Rc4 {[%clk 0:01:21.5]} 49... Kf6 {[%clk
0:00:09.3]} 50. Ke3 {[%clk 0:01:21.9]} 50... Kg5 {[%clk 0:00:10.5]} 51. Kf2
{[%clk 0:01:18]} 51... gxh3 {[%clk 0:00:09.5]} 52. Nf3+ {[%clk 0:01:18.9]} 1-0

[Event "*** Titled Tuesday Blitz"]
[Site "Chess.com"]
[Date "2019.07.02"]
[Round "5"]
[White "Nightlord1"]
[Black "temus_galaktionov"]
[Result "0-1"]
[WhiteElo "2149"]
[BlackElo "2525"]
[TimeControl "180+2"]
[EndTime "14:07:30 PDT"]
[Termination "temus_galaktionov won by resignation"]

1. e4 {[%clk 0:03:01.9]} 1... c6 {[%clk 0:02:59.5]} 2. d4 {[%clk 0:03:02.5]}
2... g6 {[%clk 0:03:00.1]} 3. Nc3 {[%clk 0:03:00.3]} 3... Bg7 {[%clk 0:03:00.7]}
4. h3 {[%clk 0:03:01.1]} 4... d6 {[%clk 0:03:01.3]} 5. f4 {[%clk 0:03:00.3]}
5... Nd7 {[%clk 0:03:02.2]} 6. g4 {[%clk 0:02:58.5]} 6... e5 {[%clk 0:03:02.9]}
7. fxe5 {[%clk 0:02:39.1]} 7... Qh4+ {[%clk 0:03:00.1]} 8. Ke2 {[%clk
0:02:33.6]} 8... dxe5 {[%clk 0:03:02]} 9. Nf3 {[%clk 0:02:25.6]} 9... Qe7 {[%clk
0:03:02.7]} 10. d5 {[%clk 0:01:49]} 10... Ngf6 {[%clk 0:02:52.4]} 11. Bg5 {[%clk
0:01:35.5]} 11... h6 {[%clk 0:02:45.7]} 12. d6 {[%clk 0:01:15.6]} 12... Qe6
{[%clk 0:02:42.5]} 13. Be3 {[%clk 0:01:16.6]} 13... Bf8 {[%clk 0:02:37.4]} 14.
Kf2 {[%clk 0:01:13.5]} 14... Bxd6 {[%clk 0:02:35.7]} 15. b3 {[%clk 0:01:09.9]}
15... Bc5 {[%clk 0:02:28.3]} 16. Qe1 {[%clk 0:01:08.5]} 16... Qe7 {[%clk
0:02:28.2]} 17. Kg2 {[%clk 0:01:07.8]} 17... Kf8 {[%clk 0:02:12.3]} 18. Rd1
{[%clk 0:01:04]} 18... Kg7 {[%clk 0:02:11.7]} 19. Bd3 {[%clk 0:01:05.3]} 19...
b5 {[%clk 0:02:02.7]} 20. Rf1 {[%clk 0:01:03.2]} 20... Bxe3 {[%clk 0:01:49.1]}
21. Qxe3 {[%clk 0:01:03.7]} 21... Nc5 {[%clk 0:01:50.1]} 22. Rd2 {[%clk
0:00:56]} 22... Bd7 {[%clk 0:01:30]} 23. Kg3 {[%clk 0:00:56.9]} 23... Rad8
{[%clk 0:01:25.9]} 24. Rdf2 {[%clk 0:00:54.3]} 24... Rhf8 {[%clk 0:01:09.3]} 25.
Ne2 {[%clk 0:00:46.7]} 25... Nh7 {[%clk 0:00:52.9]} 26. h4 {[%clk 0:00:34]}
26... Nf6 {[%clk 0:00:45.7]} 27. Nh2 {[%clk 0:00:32.8]} 27... Nh7 {[%clk
0:00:40.1]} 28. Nf3 {[%clk 0:00:26.8]} 28... Bc8 {[%clk 0:00:37.4]} 29. b4
{[%clk 0:00:26]} 29... Ne6 {[%clk 0:00:30]} 30. Nxe5 {[%clk 0:00:24.2]} 30...
Qd6 {[%clk 0:00:30.4]} 31. Rxf7+ {[%clk 0:00:23.1]} 31... Rxf7 {[%clk
0:00:25.1]} 32. Rxf7+ {[%clk 0:00:25]} 32... Kg8 {[%clk 0:00:26.4]} 33. Rf5
{[%clk 0:00:13.6]} 33... gxf5 {[%clk 0:00:23.4]} 34. exf5 {[%clk 0:00:15.5]}
34... Nc7 {[%clk 0:00:19.2]} 35. Qf4 {[%clk 0:00:16.9]} 35... Nd5 {[%clk
0:00:16.9]} 36. Nf7 {[%clk 0:00:18.4]} 36... Nxf4 {[%clk 0:00:15.1]} 37. Nxd6
{[%clk 0:00:16.7]} 37... Nxe2+ {[%clk 0:00:17]} 0-1